bitfinex/quotes_SOLUSD_20250929
["timestamp","ask_amount","ask_price","bid_price","bid_amount"]
[1759160943663,26.0,210.99,210.98,4.83978576]
[1759160943978,26.0,210.99,210.98,5.49978576]
[1759160944649,29.46054695,211.0,210.98,5.49978576]
[1759160944842,26.0,210.99,210.98,0.1]
[1759160945043,26.71,210.99,210.98,0.1]
[1759160945255,28.61181861,210.99,210.98,0.1]
[1759160946280,2.61181861,210.99,210.98,0.1]
[1759160946455,1.90181861,210.99,210.98,4.83978576]
[1759160946653,3.46054695,210.99,210.98,5.49978576]
[1759160946870,29.46054695,210.99,210.98,5.49978576]
[1759160947482,26.0,210.99,210.98,5.49978576]
[1759160948881,26.0,211.01,210.98,17.34925016]
[1759160949584,26.0,211.01,210.98,16.68925016]
[1759160949778,26.0,211.01,210.99,0.66]
[1759160950174,26.0,211.01,211.0,0.66]
[1759160950876,26.0,211.01,211.0,5.39933649]
[1759160953783,29.46054695,211.03,211.0,17.24767772]
[1759160953958,26.0,211.01,211.0,95.88767772]
[1759160954494,3.46054695,211.03,211.0,96.55767772]
[1759160954495,2.02907198,211.02,211.0,96.55767772]
[1759160954671,17.72011869,211.06,211.01,0.67]
[1759160954880,3.46054695,211.06,211.01,0.67]
[1759160955175,3.46054695,211.06,211.02,16.58610557]
[1759160955375,3.46054695,211.06,211.03,0.67]
[1759160956568,26.0,211.04,211.03,0.67]
[1759160957195,26.0,211.05,211.04,4.73843821]
[1759160957995,26.0,211.05,211.04,5.40843821]
[1759160958490,34.41,211.05,211.02,91.14721827]
[1759160958686,29.46054695,211.03,211.02,84.03885114]
[1759160958999,30.15054695,211.03,211.02,4.73885114]
[1759160959290,26.0,211.02,210.99,16.58812053]
[1759160959501,4.15054695,211.01,210.99,16.58812053]
[1759160960479,3.46054695,211.01,210.99,16.58812053]
[1759160960884,59.74,211.02,210.99,16.58812053]
[1759160961085,3.46054695,211.0,210.99,17.30812053]
[1759160961294,29.46054695,211.0,210.99,17.30812053]
[1759160961789,26.0,211.0,210.99,17.30812053]
[1759160962004,26.0,210.99,210.98,0.1]
[1759160962285,60.4,210.99,210.98,0.1]
[1759160963482,73.99559401,210.99,210.98,0.1]
[1759160963883,78.73515512,210.99,210.98,0.1]
[1759160964078,73.99559401,210.99,210.98,0.1]
[1759160965184,78.73515512,210.99,210.98,0.1]
[1759160966393,82.19570207,210.99,210.98,0.1]
[1759160966893,77.45614096,210.99,210.98,0.1]
[1759160967085,82.19570207,210.99,210.98,0.1]
[1759160967291,48.47570207,210.99,210.98,0.1]
[1759160967696,82.19570207,210.99,210.98,0.1]
[1759160968301,89.83809577,210.99,210.98,0.1]
[1759160968684,76.21618214,210.99,210.98,0.1]
[1759160968884,42.49618214,210.99,210.98,0.1]
[1759160969091,80.95574325,210.99,210.98,0.1]
[1759160969292,91.74036661,210.99,210.98,0.1]
[1759160970589,91.72036661,210.99,210.98,0.1]
[1759160972902,2.22058813,210.94,210.92,31.23217773]
[1759160973301,26.0,210.96,210.92,43.08501292]
[1759160973509,26.0,210.93,210.92,43.08501292]
[1759160974017,26.0,210.93,210.92,43.80501292]
[1759160974307,61.94058813,210.94,210.92,31.95217773]
[1759160974979,61.94058813,210.94,210.93,0.72]
[1759160976085,61.94058813,210.94,210.92,31.23217773]
[1759160976287,59.72,210.94,210.92,31.23217773]
[1759160976519,61.94058813,210.94,210.92,31.95217773]
[1759160977179,61.94058813,210.94,210.92,31.23217773]
[1759160977583,61.94058813,210.94,210.92,31.95217773]
[1759160977901,28.22058813,210.94,210.93,0.72]
[1759160978220,61.94058813,210.94,210.93,0.72]
[1759160978591,61.94058813,210.94,210.93,5.4609093]
[1759160979500,61.94058813,210.94,210.93,4.7409093]
[1759160979884,28.22058813,210.94,210.93,5.4609093]
[1759160980083,61.94058813,210.94,210.93,5.4609093]
[1759160980602,61.94058813,210.94,210.93,4.7409093]
[1759160981182,61.94058813,210.94,210.92,26.49104683]
[1759160981506,61.94058813,210.94,210.92,31.95212675]
[1759160982717,2.22058813,210.93,210.92,31.95212675]
[1759160983096,2.22058813,210.93,210.92,31.23212675]
[1759160983434,28.22058813,210.93,210.92,31.23212675]
[1759160983714,61.94058813,210.93,210.92,31.23212675]
[1759160985210,61.94058813,210.93,210.92,26.49104683]
[1759160986006,62.62058813,210.93,210.92,26.49104683]
[1759160986594,76.88897652,210.93,210.92,26.49104683]
[1759160987301,40.26838839,210.93,210.92,31.2321809]
[1759160987495,33.72,210.93,210.92,31.2321809]
[1759160987698,36.62058813,210.93,210.92,26.49104683]
[1759160987891,35.94058813,210.93,210.92,26.49104683]
[1759160988888,35.94058813,210.93,210.92,31.2321809]
[1759160989505,2.22058813,210.93,210.92,31.2321809]
[1759160989708,35.94058813,210.93,210.92,31.2321809]
[1759160990412,35.94058813,210.93,210.92,26.49104683]
[1759160990594,36.62058813,210.93,210.92,25.84104683]
[1759160990801,54.95709144,210.93,210.92,25.84104683]
[1759160990997,26.0,210.9,210.83,0.72]
[1759160991199,59.72,210.89,210.84,0.69]
[1759160991397,26.0,210.88,210.84,0.69]
[1759160991604,26.0,210.84,210.81,0.69]
[1759160991805,2.22058813,210.82,210.81,0.69]
[1759160992021,2.22058813,210.82,210.76,0.1]
[1759160992196,33.72,210.82,210.76,0.1]
[1759160992402,26.0,210.85,210.77,0.69]
[1759160992703,35.94058813,210.84,210.78,4.74428313]
[1759160993019,33.72,210.83,210.79,0.69]
[1759160994208,33.72,210.83,210.8,4.74383301]
[1759160994421,2.22058813,210.84,210.81,0.69]
[1759160994726,33.72,210.83,210.82,0.69]
[1759160995706,35.94058813,210.83,210.82,0.69]
[1759160996410,26.0,210.85,210.82,5.43338298]
[1759160996612,28.22058813,210.83,210.82,5.43338298]
[1759160997323,28.22058813,210.83,210.76,0.1]
[1759160997324,26.0,210.81,210.76,0.1]
[1759160997501,26.0,210.78,210.77,0.69]
[1759160997706,26.0,210.8,210.78,0.69]
[1759160997907,26.0,210.8,210.79,0.69]
[1759160998106,59.86,210.8,210.79,0.69]
[1759160998617,59.86,210.8,210.79,5.43405806]
[1759160998925,26.0,210.8,210.79,5.43405806]
[1759160999324,26.0,210.8,210.79,0.69]
[1759160999508,26.0,210.8,210.77,0.69]
[1759160999908,26.0,210.8,210.78,0.69]
[1759160999909,28.22058813,210.8,210.78,0.69]
[1759161000235,59.88,210.8,210.77,4.74450823]
[1759161000608,2.22058813,210.79,210.77,4.74450823]
[1759161000806,33.88,210.78,210.76,4.8447211]
[1759161001008,2.22058813,210.79,210.77,0.69]
[1759161001312,33.88,210.78,210.77,0.69]
[1759161001715,0.59,210.87,210.77,0.69]
[1759161001902,2.22058813,210.81,210.76,0.1]
[1759161002102,0.59,210.86,210.76,0.1]
[1759161002103,26.0,210.77,210.76,0.1]
[1759161002304,26.0,210.77,210.76,4.84473334]
[1759161002511,26.0,210.77,210.76,5.53473334]
[1759161002723,28.81058813,210.77,210.76,0.1]
[1759161002917,36.69058813,210.77,210.76,0.1]
[1759161003510,36.10058813,210.77,210.76,0.1]
[1759161003726,34.47,210.77,210.76,0.1]
[1759161003924,36.69058813,210.77,210.76,0.1]
[1759161004109,60.08,210.77,210.76,0.1]
[1759161004314,26.0,210.77,210.76,0.1]
[1759161004527,60.1,210.77,210.76,0.1]
[1759161004828,62.91058813,210.77,210.76,0.1]
[1759161005220,60.69,210.77,210.76,0.1]
[1759161005534,62.91058813,210.77,210.76,0.1]
[1759161005708,67.65509636,210.77,210.76,0.1]
[1759161005909,60.1,210.77,210.76,0.1]
[1759161006128,62.91058813,210.77,210.76,0.1]
[1759161006324,62.32058813,210.77,210.76,0.1]
[1759161006511,62.89058813,210.77,210.76,0.1]
[1759161006713,67.63509636,210.77,210.76,0.1]
[1759161009061,79.01010224,210.77,210.76,0.1]
[1759161009333,86.52643551,210.77,210.76,0.1]
[1759161009540,61.0126444,210.77,210.76,0.1]
[1759161009727,95.0926444,210.77,210.76,0.1]
[1759161009923,86.21029188,210.77,210.76,0.1]
[1759161010341,43.26075102,210.77,210.76,0.1]
[1759161010640,76.46618214,210.77,210.76,0.1]
[1759161011019,62.91058813,210.77,210.76,0.1]
[1759161011228,76.50618214,210.77,210.76,0.1]
[1759161011431,81.25069037,210.77,210.76,0.1]
[1759161011814,62.32058813,210.77,210.76,0.1]
[1759161012012,60.08,210.77,210.76,0.1]
[1759161012216,31.29253485,210.77,210.76,0.1]
[1759161012433,62.30058813,210.77,210.76,0.1]
[1759161012639,65.37253485,210.77,210.76,0.1]
[1759161014060,3.07194672,210.77,210.76,0.1]
[1759161014238,34.08,210.77,210.76,0.1]
[1759161014619,34.67,210.77,210.76,0.1]
[1759161014828,36.30058813,210.77,210.76,0.1]
[1759161015142,54.64069037,210.77,210.76,0.1]
[1759161015337,56.0805853,210.77,210.76,0.1]
[1759161015538,58.30117343,210.77,210.76,0.1]
[1759161016240,67.18352595,210.77,210.76,0.1]
[1759161016642,26.0,210.74,210.48,1.9044445]
[1759161016944,41.81618214,210.63,210.55,0.71]
[1759161017145,47.15384391,210.63,210.43,20.0]
[1759161017338,2.22058813,210.55,210.54,0.71]
[1759161017639,26.0,210.52,210.41,40.3973195]
[1759161017840,28.22058813,210.52,210.41,40.3973195]
[1759161018334,28.22058813,210.52,210.42,0.71]
[1759161018335,2.22058813,210.49,210.42,0.71]
[1759161018532,26.0,210.52,210.42,0.71]
[1759161018533,34.92,210.51,210.42,0.71]
[1759161018849,2.22058813,210.5,210.41,38.6073195]
[1759161019923,3.89116742,210.55,210.41,38.6073195]
[1759161020131,2.22058813,210.52,210.41,38.6073195]
[1759161020860,34.94,210.53,210.42,0.71]
[1759161021160,34.94,210.52,210.43,40.39347999]
[1759161021449,2.22058813,210.51,210.44,0.69]
[1759161021659,34.92,210.5,210.44,0.69]
[1759161022155,2.22058813,210.48,210.44,0.69]
[1759161022355,26.0,210.47,210.45,0.69]
[1759161022557,26.0,210.47,210.42,5.44239973]
[1759161022756,60.92,210.47,210.43,0.69]
[1759161023056,60.92,210.47,210.42,4.75239973]
[1759161023057,2.22058813,210.46,210.44,0.69]
[1759161023451,60.92,210.47,210.4,11.88184978]
[1759161023631,28.22058813,210.46,210.4,11.88184978]
[1759161023829,26.0,210.49,210.38,4.75330354]
[1759161023830,2.22058813,210.43,210.38,4.75330354]
[1759161024075,2.22058813,210.42,210.39,0.69]
[1759161024546,0.72,210.53,210.39,0.69]
[1759161024737,2.22058813,210.47,210.39,0.69]
[1759161024937,26.0,210.49,210.39,0.69]
[1759161025142,26.0,210.45,210.39,0.69]
[1759161025338,28.22058813,210.41,210.39,0.69]
[1759161025539,2.22058813,210.4,210.39,0.69]
[1759161025756,2.22058813,210.4,210.39,4.75307204]
[1759161025947,26.0,210.41,210.39,4.75307204]
[1759161026146,61.12,210.45,210.39,4.75307204]
[1759161026349,2.22058813,210.42,210.39,5.44307204]
[1759161026544,61.12,210.45,210.4,0.69]
[1759161026746,2.22058813,210.42,210.41,0.69]
[1759161026945,26.0,210.43,210.41,0.69]
[1759161027142,26.0,210.43,210.42,4.75239996]
[1759161027446,28.22058813,210.43,210.42,5.44239996]
[1759161027647,2.22058813,210.43,210.42,5.44239996]
[1759161028045,2.22058813,210.43,210.42,4.75239996]
[1759161028245,2.22058813,210.43,210.42,5.44239996]
[1759161028441,26.0,210.44,210.42,5.44239996]
[1759161028666,26.0,210.44,210.43,0.69]
[1759161028854,26.0,210.48,210.43,0.69]
[1759161028855,2.22058813,210.48,210.43,0.69]
[1759161029035,2.22058813,210.48,210.42,16.63339986]
[1759161029372,26.0,210.47,210.44,16.63181903]
[1759161029663,2.22058813,210.45,210.4,0.69]
[1759161029860,2.22058813,210.42,210.41,0.69]
[1759161030564,35.12,210.52,210.41,0.69]
[1759161030764,3.48549188,210.51,210.41,0.69]
[1759161030946,26.0,210.49,210.41,0.69]
[1759161031355,26.0,210.49,210.42,16.63339986]
[1759161031589,18.54,210.52,210.43,0.69]
[1759161031866,0.72,210.54,210.43,0.69]
[1759161031867,38.62549188,210.55,210.43,0.69]
[1759161032044,3.48549188,210.55,210.43,0.69]
[1759161032246,28.52549188,210.55,210.43,0.69]
[1759161032440,3.80492515,210.58,210.44,13.59559401]
[1759161032650,26.54,210.6,210.46,13.59559401]
[1759161032850,25.82,210.6,210.48,33.59559401]
[1759161033051,4.52225369,210.64,210.49,0.69]
[1759161033254,4.20549188,210.64,210.49,0.69]
[1759161033561,4.20549188,210.64,210.5,40.3800475]
[1759161033759,4.20549188,210.64,210.51,0.69]
[1759161033962,26.0,210.63,210.51,0.69]
[1759161034173,0.72,210.64,210.51,0.69]
[1759161034556,26.0,210.63,210.51,0.69]
[1759161034871,0.72,210.64,210.51,0.69]
[1759161035070,0.72,210.64,210.52,35.12]
[1759161035269,0.72,210.64,210.53,0.69]
[1759161035474,0.72,210.64,210.54,16.62391944]
[1759161035475,26.0,210.63,210.54,16.62391944]
[1759161035779,3.04100955,210.67,210.55,0.69]
[1759161035780,0.72,210.67,210.55,0.69]
[1759161035975,4.20549188,210.67,210.55,79.99]
[1759161036162,26.0,210.66,210.56,0.69]
[1759161036358,26.72,210.65,210.56,0.69]
[1759161036550,26.0,210.63,210.54,16.62391944]
[1759161036747,0.72,210.62,210.54,17.31391944]
[1759161036945,26.0,210.63,210.55,0.69]
[1759161037150,26.0,210.62,210.55,0.69]
[1759161037483,26.0,210.62,210.56,16.62234042]
[1759161037782,26.72,210.64,210.57,0.69]
[1759161038464,26.0,210.64,210.57,0.69]
[1759161039257,3.04869382,210.66,210.57,0.69]
[1759161039453,3.04869382,210.66,210.58,16.62076169]
[1759161039670,0.72,210.68,210.58,16.62076169]
[1759161039671,0.72,210.68,210.59,0.69]
[1759161040191,3.04869382,210.7,210.61,26.0]
[1759161040391,3.04869382,210.73,210.62,0.69]
[1759161040680,26.0,210.74,210.62,0.69]
[1759161040974,0.72,210.73,210.62,35.79]
[1759161041179,0.72,210.73,210.63,35.79]
[1759161041586,0.72,210.73,210.64,16.61602734]
[1759161041757,0.72,210.73,210.64,52.40602734]
[1759161041960,0.72,210.73,210.65,0.69]
[1759161043372,26.0,210.72,210.65,0.69]
[1759161043566,26.0,210.72,210.66,16.61444982]
[1759161044070,0.72,210.71,210.66,4.74698566]
[1759161044286,0.72,210.7,210.66,4.74698566]
[1759161044469,0.72,210.69,210.64,4.74724798]
[1759161044669,0.72,210.68,210.64,4.74724798]
[1759161044869,0.72,210.71,210.64,4.74724798]
[1759161045178,0.72,210.7,210.64,4.74724798]
[1759161045576,0.72,210.7,210.64,11.86859096]
[1759161046797,0.72,210.7,210.61,16.61839418]
[1759161046996,26.0,210.69,210.64,0.69]
[1759161047495,26.0,210.7,210.65,0.69]
[1759161047678,26.0,210.7,210.66,0.69]
[1759161048178,26.0,210.7,210.61,75.3389573]
[1759161048390,26.0,210.7,210.62,0.69]
[1759161048566,26.0,210.74,210.62,0.69]
[1759161048764,26.72,210.74,210.63,16.61681621]
[1759161048967,26.72,210.74,210.64,0.69]
[1759161049214,26.0,210.68,210.62,0.69]
[1759161049766,0.72,210.68,210.58,11.87158799]
[1759161049973,26.72,210.67,210.59,0.69]
[1759161050270,26.72,210.67,210.58,11.87158799]
[1759161050483,8.89888049,210.66,210.58,11.87158799]
[1759161050687,0.72,210.65,210.58,11.87158799]
[1759161051196,8.17888049,210.63,210.58,16.62037704]
[1759161051387,26.0,210.6,210.54,0.69]
[1759161051584,26.0,210.6,210.55,0.69]
[1759161051786,26.0,210.6,210.56,0.69]
[1759161051974,0.71,210.64,210.57,0.69]
[1759161052181,26.0,210.66,210.57,0.69]
[1759161052380,8.17888049,210.64,210.57,0.69]
[1759161052579,26.0,210.64,210.57,0.69]
[1759161053083,8.88888049,210.67,210.58,16.62076169]
[1759161053279,8.17888049,210.67,210.59,0.69]
[1759161053493,26.0,210.67,210.6,35.0]
[1759161053685,26.0,210.67,210.61,0.69]
[1759161054417,0.71,210.7,210.61,0.69]
[1759161054717,8.88888049,210.7,210.61,0.69]
[1759161055204,8.88888049,210.7,210.62,16.61760516]
[1759161055408,8.17888049,210.7,210.63,0.69]
[1759161055575,8.17888049,210.72,210.63,0.69]
[1759161056288,8.17888049,210.72,210.63,35.67]
[1759161056602,8.17888049,210.72,210.64,0.69]
[1759161057010,8.88888049,210.72,210.64,0.69]
[1759161057174,8.88888049,210.72,210.65,16.61523854]
[1759161057378,0.71,210.72,210.65,16.61523854]
[1759161058709,0.71,210.72,210.65,51.57523854]
[1759161059408,0.71,210.72,210.65,16.61523854]
[1759161059602,26.0,210.73,210.66,34.94]
[1759161059797,0.71,210.74,210.66,35.63]
[1759161060700,0.71,210.73,210.67,0.69]
[1759161061284,0.71,210.73,210.68,4.74653502]
[1759161061630,0.71,210.72,210.68,4.74653502]
[1759161062888,0.71,210.72,210.68,16.61287259]
[1759161063091,26.0,210.73,210.68,17.30287259]
[1759161063315,8.17888049,210.76,210.68,17.30287259]
[1759161063488,0.71,210.75,210.68,16.61287259]
[1759161063686,26.0,210.73,210.68,16.61287259]
[1759161063898,0.71,210.72,210.68,16.61287259]
[1759161064693,0.71,210.72,210.68,11.86633757]
[1759161064892,0.71,210.75,210.68,12.55633757]
[1759161065088,34.17888049,210.77,210.68,12.55633757]
[1759161065295,0.71,210.76,210.68,12.55633757]
[1759161065496,0.71,210.75,210.68,11.86633757]
[1759161065697,0.71,210.74,210.68,11.86633757]
[1759161066619,0.71,210.74,210.68,12.55633757]
[1759161066815,0.71,210.74,210.68,17.30287259]
[1759161067011,0.71,210.74,210.68,95.91287259]
[1759161067214,8.17888049,210.72,210.68,79.3]
[1759161067523,8.17888049,210.69,210.68,79.3]
[1759161067708,8.38888049,210.69,210.68,79.3]
[1759161068297,34.38888049,210.69,210.68,79.3]
[1759161068723,26.0,210.66,210.62,4.74788719]
[1759161068926,34.88888049,210.66,210.62,11.86971797]
[1759161069113,0.71,210.65,210.62,11.86971797]
[1759161069421,8.17888049,210.66,210.62,12.55971797]
[1759161070127,8.17888049,210.66,210.63,0.69]
[1759161070306,8.17888049,210.66,210.61,0.69]
[1759161070618,8.17888049,210.66,210.6,51.41918328]
[1759161070916,0.71,210.7,210.63,16.61681621]
[1759161071226,8.17888049,210.68,210.63,16.61681621]
[1759161071406,8.17888049,210.68,210.64,0.69]
[1759161071607,8.17888049,210.68,210.65,0.69]
[1759161071816,8.88888049,210.68,210.63,16.61681621]
[1759161072122,8.88888049,210.67,210.63,16.61681621]
[1759161072310,0.71,210.66,210.63,16.61681621]
[1759161072623,8.17888049,210.67,210.63,16.61681621]
[1759161073017,8.88888049,210.67,210.63,16.61681621]
[1759161073217,8.17888049,210.67,210.63,17.30681621]
[1759161073605,8.17888049,210.67,210.63,16.61681621]
[1759161073821,8.17888049,210.67,210.63,17.27681621]
[1759161074136,8.17888049,210.67,210.64,0.66]
[1759161074313,8.17888049,210.67,210.63,16.61681621]
[1759161074514,8.17888049,210.67,210.64,0.66]
[1759161074898,8.88888049,210.7,210.66,4.74698566]
[1759161075109,0.71,210.75,210.67,0.66]
[1759161075409,26.0,210.71,210.67,0.66]
[1759161075726,8.88888049,210.74,210.68,0.66]
[1759161076937,0.71,210.74,210.69,16.6120841]
[1759161077115,34.17888049,210.75,210.7,0.66]
[1759161077326,34.88888049,210.75,210.7,0.66]
[1759161077627,8.17888049,210.77,210.71,0.66]
[1759161077935,11.46669731,210.82,210.71,0.66]
[1759161078103,0.2,210.82,210.71,0.66]
[1759161078303,26.0,210.8,210.71,0.66]
[1759161078504,0.2,210.82,210.71,0.66]
[1759161078926,0.2,210.82,210.71,14.65651245]
[1759161079134,0.2,210.82,210.72,17.26971905]
[1759161079544,0.2,210.82,210.73,0.66]
[1759161079709,0.91,210.82,210.73,0.66]
[1759161080925,0.2,210.82,210.73,0.66]
[1759161081305,0.2,210.82,210.74,16.60814272]
[1759161081511,0.2,210.82,210.75,35.41]
[1759161081909,0.2,210.82,210.76,0.69]
[1759161082623,8.17888049,210.8,210.74,51.30814272]
[1759161083223,8.17888049,210.8,210.74,51.99814272]
[1759161083427,8.86888049,210.8,210.74,51.99814272]
[1759161083821,8.17888049,210.8,210.74,51.99814272]
[1759161084023,8.17888049,210.8,210.75,0.69]
[1759161084226,26.89,210.82,210.76,0.69]
[1759161084227,0.2,210.82,210.76,0.69]
[1759161084528,26.0,210.83,210.76,0.69]
[1759161084734,34.17888049,210.83,210.76,0.69]
[1759161086033,34.17888049,210.83,210.77,16.6057788]
[1759161086328,26.0,210.83,210.77,17.2957788]
[1759161086512,26.0,210.83,210.78,0.69]
[1759161086713,26.0,210.83,210.79,0.69]
[1759161086918,25.0,210.83,210.79,0.69]
[1759161087712,8.17888049,210.88,210.8,0.69]
[1759161088041,9.06888049,210.91,210.81,16.60262795]
[1759161088336,0.89,210.91,210.82,0.69]
[1759161088840,0.89,210.91,210.83,34.66]
[1759161088841,8.17888049,210.89,210.83,34.66]
[1759161089335,8.17888049,210.89,210.83,35.35]
[1759161089710,8.17888049,210.89,210.84,0.69]
[1759161089912,8.17888049,210.89,210.86,16.59869107]
[1759161090146,0.2,210.91,210.86,16.59869107]
[1759161090444,0.2,210.91,210.87,0.69]
[1759161090617,0.2,210.91,210.88,0.69]
[1759161091016,0.2,210.91,210.88,34.64]
[1759161091213,0.2,210.91,210.88,35.33]
[1759161091840,0.2,210.91,210.88,34.64]
[1759161092124,0.2,210.91,210.9,4.74158368]
[1759161092710,0.2,210.91,210.82,0.69]
[1759161092711,6.35616412,210.91,210.82,0.69]
[1759161092911,5.46616412,210.86,210.84,11.85683945]
[1759161093124,0.69,210.86,210.84,11.85683945]
[1759161093322,5.46616412,210.85,210.84,11.85683945]
[1759161094918,26.89,210.91,210.84,12.54683945]
[1759161095125,5.46616412,210.9,210.84,12.54683945]
[1759161095549,6.15616412,210.9,210.84,47.18683945]
[1759161096122,0.69,210.9,210.84,51.92977247]
[1759161096444,5.46616412,210.88,210.84,51.92977247]
[1759161096623,5.46616412,210.89,210.84,51.92977247]
[1759161096822,6.15616412,210.89,210.84,51.92977247]
[1759161097035,5.46616412,210.89,210.84,17.28977247]
[1759161097234,0.69,210.88,210.84,51.23977247]
[1759161097639,31.46616412,210.89,210.84,51.92977247]
[1759161097944,32.15616412,210.89,210.84,51.92977247]
[1759161099170,31.46616412,210.89,210.84,51.23977247]
[1759161099350,31.46616412,210.89,210.85,0.69]
[1759161099640,0.2,210.91,210.86,0.69]
[1759161100019,0.2,210.91,210.84,51.23977247]
[1759161100020,0.2,210.91,210.87,0.69]
[1759161100227,0.2,210.91,210.88,0.69]
[1759161100425,0.2,210.91,210.88,35.31]
[1759161100625,0.2,210.91,210.89,4.74180852]
[1759161101224,0.2,210.91,210.89,5.43180852]
[1759161101449,0.2,210.91,210.9,0.69]
[1759161101818,0.2,210.91,210.89,4.74180852]
[1759161102022,0.2,210.91,210.9,0.69]
[1759161102740,0.2,210.91,210.9,5.43158368]
[1759161103930,0.2,210.91,210.9,39.38158368]
[1759161104250,0.2,210.91,210.9,4.74158368]
[1759161104445,0.89,210.91,210.9,4.74158368]
[1759161104631,0.2,210.91,210.9,4.74158368]
[1759161105155,0.2,210.91,210.89,4.74180852]
[1759161106157,0.69,210.9,210.86,4.74248316]
[1759161106327,5.46616412,210.88,210.86,4.74248316]
[1759161106528,0.69,210.87,210.81,4.74360798]
[1759161106728,5.46616412,210.84,210.81,4.74360798]
[1759161107343,6.15616412,210.84,210.81,4.74360798]
[1759161107549,0.69,210.83,210.76,12.55133289]
[1759161107742,5.46616412,210.81,210.77,39.38450823]
[1759161108143,5.46616412,210.81,210.77,51.2457788]
[1759161108739,0.69,210.83,210.77,51.2457788]
[1759161108941,0.69,210.87,210.78,0.69]
[1759161109160,5.46616412,210.86,210.79,16.60420322]
[1759161109453,5.46616412,210.86,210.8,0.69]
[1759161111244,5.46616412,210.86,210.81,16.60262795]
[1759161111442,0.69,210.85,210.81,16.60262795]
[1759161111757,5.46616412,210.86,210.81,17.30262795]
[1759161111960,5.46616412,210.86,210.81,16.60262795]
[1759161112147,6.15616412,210.86,210.81,16.60262795]
[1759161112533,0.69,210.85,210.81,16.60262795]
[1759161112732,5.46616412,210.86,210.81,17.30262795]
[1759161113146,5.46616412,210.86,210.82,0.7]
[1759161113346,5.46616412,210.86,210.83,0.7]
[1759161113851,5.46616412,210.86,210.81,17.30262795]
[1759161114054,26.69,210.89,210.82,0.7]
[1759161114233,5.46616412,210.87,210.82,0.7]
[1759161114429,5.46616412,210.87,210.83,0.7]
[1759161114860,5.46616412,210.87,210.81,16.60262795]
[1759161114861,0.69,210.89,210.81,16.60262795]
[1759161115032,5.46616412,210.9,210.84,0.7]
[1759161115228,5.46616412,210.9,210.85,16.59947829]
[1759161115446,5.46616412,210.9,210.86,0.7]
[1759161115654,5.46616412,210.9,210.87,0.7]
[1759161116028,0.2,210.91,210.85,16.59947829]
[1759161116029,0.2,210.91,210.88,0.7]
[1759161116441,0.2,210.91,210.85,41.01301872]
[1759161117358,0.2,210.91,210.86,0.7]
[1759161117550,0.2,210.91,210.87,0.7]
[1759161117856,0.2,210.91,210.88,0.7]
[1759161118054,6.15616412,210.9,210.85,4.74270808]
[1759161118257,6.15616412,210.9,210.82,11.85797465]
[1759161118258,5.46616412,210.86,210.83,4.74315799]
[1759161118434,0.69,210.86,210.83,4.74315799]
[1759161118631,5.46616412,210.85,210.83,4.74315799]
[1759161119053,6.15616412,210.85,210.83,4.74315799]
[1759161119253,0.69,210.84,210.8,11.85958254]
[1759161119456,5.46616412,210.82,210.8,11.85958254]
[1759161119644,0.69,210.83,210.78,0.7]
[1759161119845,5.46616412,210.82,210.79,0.7]
[1759161120861,5.46616412,210.82,210.78,16.60488206]
[1759161121062,5.46616412,210.82,210.79,0.7]
[1759161121274,5.46616412,210.82,210.8,4.74383301]
[1759161121764,0.69,210.81,210.8,4.74383301]